Cogmind - Beta 14 @@@ ROGUE MODE // 2024.09.14 @ 09:48:53 // Winter2019/RPGLIKE Player: Toaster Result: Destroyed by H-88 Terminator via exploding Wave Collapse Detector Performance ------------- Evolutions (9) 4500 Regions Visited (21) 4200 Robots Destroyed (366) 1830 Value Destroyed (19857) 19857 Prototype IDs (38) 760 Alien Tech Used (3) 600 Bonus (16692) 16692 TOTAL SCORE: 48439 Bonus ------- Triggered High Security 500 High Alert Combat Kills 7261 Follower Combat Kills 1777 Entered DSFs 500 Registered with UFD 300 Met Zhirov 300 Built Enhanced Grunts 300 A7 Reached Mainframe 300 Used Core Reset Matrix 3000 Met R17 at Research 2000 Scanned by Researcher 500 Friendly Fire -46 Cogmind --------- Core Integrity 0/2600 Matter 0/300 Energy 84/440 System Corruption 13% Temperature Cool (0) Movement Hovering (48) Location -1/Access Parts ------- > --- POWER (3) -------- Heavy Antimatter Reactor > --- PROPULSION (8) --- Antigrav Array Antigrav Array Antigrav Array Antigrav Array > --- UTILITY (8) ------ Power Amplifier Advanced Heat Sink Advanced Heat Sink Advanced Targeting Computer Advanced ECM Suite Heavy Regenerative Plating Advanced Force Field > --- WEAPON (4) ------- Enhanced Nova Cannon (fused) Enhanced Nova Cannon Micro-nuke Launcher > --- INVENTORY (2) ---- Enhanced Nova Cannon Null Cannon Peak State ------------ > --- POWER ------------ Antimatter Reactor Heavy Antimatter Reactor Light Quantum Reactor > --- PROPULSION ------- Antigrav Array Antigrav Array Antigrav Array Antigrav Array > --- UTILITY ---------- Advanced Heat Sink Improved Cooling System Advanced Targeting Computer Advanced Targeting Computer Advanced ECM Suite Heavy Regenerative Plating Advanced Force Field > --- WEAPON ----------- Enhanced Nova Cannon Enhanced Nova Cannon Enhanced Nova Cannon Null Cannon > --- INVENTORY -------- Medium Regenerative Plating Enhanced Nova Cannon [Rating: 172] Favorites ----------- Power Micro Fission Core Engine Ion Engine Power Core Micro Fission Core Reactor Antimatter Reactor Propulsion Improved Antigrav System Leg Carbon-fiber Leg Wheel Subdweller Monowheel Hover Unit Improved Antigrav System Flight Unit Xenon Bombardment Thruster Utility Advanced Targeting Computer Device Improved Cooling System Processor Advanced Targeting Computer Protection Centrium Medium Armor Plating Weapon Advanced Plasma Cannon Energy Gun Beamcaster Energy Cannon Advanced Plasma Cannon Ballistic Gun Shotgun Ballistic Cannon Slug Cannon Launcher Micro-nuke Launcher Special Weapon Enhanced Flamer Impact Weapon Maul Slashing Weapon Katana Build | -11 -10 -10 -8 -8 -6 -6 -5 -5 -5 -5 -5 -4 -4 -4 -4 -3 -3 -3 -2 -2 -1 ------- Run | Yrd Mat Sub Rec Scr Fac DSF Fac Ext Cet Arc Hub Fac Upp Upp Zhi Pro Res Qua Res Tes Acc Slots Evolved 19 | 3 1 1 1 . 2 . 1 2 . 2 3 . . . . . 2 . . 1 . Power 2 | 1 . . . . . . . 1 . . . . . . . . . . . . . Propulsion 7 | 1 . . . . 1 . . 1 . 1 1 . . . . . 1 . . 1 . Utility 7 | . 1 1 . . 1 . 1 . . 1 1 . . . . . 1 . . . . Weapon 3 | 1 . . 1 . . . . . . . 1 . . . . . . . . . . Parts Attached 258 | 6 10 16 11 8 4 7 15 16 . 4 3 15 10 5 8 7 11 3 8 30 61 Power 20 | 2 1 . . 1 . 1 1 1 . 1 . . 1 1 2 . . . . 4 4 Engine 2 | 2 . . . . . . . . . . . . . . . . . . . . . Core 7 | . 1 . . 1 . 1 1 1 . . . . . 1 . . . . . 1 . Reactor 11 | . . . . . . . . . . 1 . . 1 . 2 . . . . 3 4 Propulsion 52 | 2 . 8 2 . . 3 4 3 . 1 1 10 . . 4 . 2 . 4 3 5 Treads . | . . . . . . . . . . . . . . . . . . . . . . Leg 6 | 2 . 4 . . . . . . . . . . . . . . . . . . . Wheel 4 | . . 4 . . . . . . . . . . . . . . . . . . . Hover 39 | . . . 2 . . . 4 3 . 1 1 10 . . 4 . 2 . 4 3 5 Flight 3 | . . . . . . 3 . . . . . . . . . . . . . . . Utility 120 | . 4 2 5 4 4 3 5 11 . 2 1 5 4 1 2 6 9 3 3 13 33 Device 98 | . 2 1 2 2 3 2 3 10 . 1 1 4 4 1 2 6 7 3 3 8 33 Storage . | . . . . . . . . . . . . . . . . . . . . . . Processor 4 | . . . . . . . 2 . . . . 1 . . . . 1 . . . . Hackware . | . . . . . . . . . . . . . . . . . . . . . . Protection 18 | . 2 1 3 2 1 1 . 1 . 1 . . . . . . 1 . . 5 . Artifact . | . . . . . . . . . . . . . . . . . . . . . . Weapon 66 | 2 5 6 4 3 . . 5 1 . . 1 . 5 3 . 1 . . 1 10 19 Energy Gun 4 | 2 . 2 . . . . . . . . . . . . . . . . . . . Energy Cannon 42 | . . 2 . . . . 5 1 . . 1 . 5 3 . 1 . . 1 10 13 Ballistic Gun 4 | . 3 1 . . . . . . . . . . . . . . . . . . . Ballistic Cannon 1 | . . 1 . . . . . . . . . . . . . . . . . . . Launcher 6 | . . . . . . . . . . . . . . . . . . . . . 6 Special Weapon 6 | . 2 . 1 3 . . . . . . . . . . . . . . . . . Impact Weapon 2 | . . . 2 . . . . . . . . . . . . . . . . . . Slashing Weapon 1 | . . . 1 . . . . . . . . . . . . . . . . . . Piercing Weapon . | . . . . . . . . . . . . . . . . . . . . . . Special Melee Weapon . | . . . . . . . . . . . . . . . . . . . . . . Unidentified Prototypes 14 | . . . . . . . 1 . . 1 . . . . 3 . . 2 . 7 . Parts Lost 9 | . . . 2 . . . 3 . . . . 1 . . . . . . 1 . 2 Power . | . . . . . . . . . . . . . . . . . . . . . . Propulsion 3 | . . . . . . . . . . . . . . . . . . . 1 . 2 Utility 4 | . . . 2 . . . 1 . . . . 1 . . . . . . . . . Weapon 2 | . . . . . . . 2 . . . . . . . . . . . . . . Highest Loss Streak 2 | . . . 2 . . . 1 . . . . 1 . . . . . . 1 . 2 To Critical Strikes 1 | . . . . . . . . . . . . . . . . . . . 1 . . Average Slot Usage (%) 93 | . 98 87 92 93 78 90 89 98 100 99 100 99 100 100 99 100 99 100 98 97 79 Engine 4 | . 14 11 10 5 . . . . . . . . . . . . . . . . . Core 9 | . 12 11 10 14 17 16 15 18 20 11 10 10 5 5 5 5 4 4 4 2 . Reactor 4 | . . . . . . . . . . 4 5 5 9 10 10 10 9 9 9 10 10 Leg 6 | . 26 21 12 . . . . . . . . . . . . . . . . . . Hover 17 | . . . 8 20 17 . 16 24 26 28 29 29 30 30 29 30 30 31 30 32 21 Device 15 | . 11 9 10 11 17 24 22 15 20 16 18 19 20 20 19 20 20 22 21 18 17 Processor 5 | . . . . . . . 1 13 13 11 10 10 10 10 10 10 9 9 9 8 5 Protection 7 | . 5 11 14 17 . . 7 3 . 4 5 5 5 5 5 5 4 4 4 4 4 Energy Gun 1 | . 3 8 . . . . . . . . . . . . . . . . . . . Energy Cannon 11 | . . 3 . . . . 19 20 20 17 18 20 20 20 20 20 19 18 17 17 16 Ballistic Gun 1 | . 17 . . . . . . . . . . . . . . . . . . . . Ballistic Cannon 1 | . . 9 . . . . . . . . . . . . . . . . . . . Special Weapon 2 | . 5 . . 23 26 25 1 . . . . . . . . . . . . . . Impact Weapon 1 | . . . 20 . . . . . . . . . . . . . . . . . . Peak Build Rating 172 | 6 12 32 29 30 34 43 71 78 78 94 111 125 127 127 130 130 140 136 136 159 172 Average Rating 78 | 4 10 28 25 24 30 39 55 71 78 93 102 113 123 123 127 128 131 135 132 144 162 On Entrance 81 | . 6 10 29 25 30 32 43 65 78 78 94 111 124 122 127 130 128 136 135 135 152 Naked Turns . | . . . . . . . . . . . . . . . . . . . . . . Heaviest Build 143 | 11 19 44 44 26 25 27 46 54 51 66 79 79 94 94 96 97 110 111 111 125 143 Greatest Support 129 | 20 25 50 50 35 26 28 50 57 57 66 82 92 97 97 97 97 111 111 111 123 129 Greatest Overweight (x) 2 | . . 2 1 . . 1 1 1 . . . 1 1 . 1 . 1 . 1 1 1 Average Overweight (x) . | . . . . . . . . . . . . . . . . . . . . . . Largest Inventory Capacity 2 | . 1 1 1 1 1 1 1 1 1 1 2 2 2 2 2 2 2 2 2 2 2 Average Capacity 1 | . . 1 1 1 1 1 1 1 1 1 1 2 2 2 2 2 2 2 2 2 2 Most Carried 2 | . 1 1 1 1 1 1 1 1 1 1 2 2 2 2 2 2 2 2 2 2 2 Average Carried 1 | . . . . . 1 . . . . . . . 1 1 1 1 1 . . 1 1 Final Capacity 2 | . 1 1 1 1 1 1 1 1 1 1 2 2 2 2 2 2 2 2 2 2 2 Final Carried 2 | . 1 1 1 1 1 1 1 . 1 . . . 2 2 2 2 1 . 1 2 2 Class Distribution -------------------- 25% | Scavenger-Gunner 16% | Scavenger-Mutant 14% | Gunner 11% | Mutant 11% | Derelict-Gunner 6% | Pyromaniac-Gunner 4% | Gladiator 4% | Scavenger-Gladiator Dominant Class ---------------- Mutant | -10/Materials Scavenger-Mutant | -10/Subcaves Scavenger-Gladiator | -8/Recycling Mutant | -8/Scraptown Pyromaniac-Gunner | -6/Factory Pyromaniac-Gunner | -6/DSF Gunner | -5/Factory Scavenger-Gunner | -5/Extension Scavenger-Gunner | -5/Cetus Scavenger-Gunner | -5/Archives Scavenger-Gunner | -5/Hub_04(d) Scavenger-Gunner | -4/Factory Pyromaniac-Gunner | -4/Upper Caves Scavenger-Gunner | -4/Upper Caves Gunner | -4/Zhirov Gunner | -3/Proximity Caves Derelict-Gunner | -3/Research Derelict-Gunner | -3/Quarantine Derelict-Gunner | -2/Research Scavenger-Gunner | -2/Testing Gunner | -1/Access Resources | -11 -10 -10 -8 -8 -6 -6 -5 -5 -5 -5 -5 -4 -4 -4 -4 -3 -3 -3 -2 -2 -1 ----------- Run | Yrd Mat Sub Rec Scr Fac DSF Fac Ext Cet Arc Hub Fac Upp Upp Zhi Pro Res Qua Res Tes Acc Matter Collected 3702 | 260 319 450 118 114 . 110 182 131 40 40 30 150 100 44 . 206 128 15 120 307 838 Remotely 46 | . 46 . . . . . . . . . . . . . . . . . . . . Salvage Created 16750 | . 363 394 153 . . 74 876 1335 366 324 657 974 737 462 . 1398 965 367 1224 1469 4612 Parts 768 | . 33 37 17 . . 2 73 70 17 8 29 35 46 13 . 49 36 13 41 45 204 Haulers Intercepted 6 | . 2 . . . . . . . . . . . . . . . . 1 . . 3 Recyclers Shooed 2 | . . . . . . . 2 . . . . . . . . . . . . . . Parts Field Recycled . | . . . . . . . . . . . . . . . . . . . . . . Retrieved Matter . | . . . . . . . . . . . . . . . . . . . . . . Parts Self-Destructed 154 | . . 30 . . . . . . . . . . 44 12 . 68 . . . . . Prevented . | . . . . . . . . . . . . . . . . . . . . . . Kills | -11 -10 -10 -8 -8 -6 -6 -5 -5 -5 -5 -5 -4 -4 -4 -4 -3 -3 -3 -2 -2 -1 ------- Run | Yrd Mat Sub Rec Scr Fac DSF Fac Ext Cet Arc Hub Fac Upp Upp Zhi Pro Res Qua Res Tes Acc Combat Hostiles Destroyed 318 | . 14 12 12 . . 8 23 21 4 3 11 11 20 6 . 23 13 4 16 20 97 Melee 7 | . . . 6 . . . . . . . . . . . . . . . . . 1 Guns 20 | . 13 7 . . . . . . . . . . . . . . . . . . . Cannons 217 | . . 5 1 . . 3 21 17 3 1 8 5 18 6 . 18 10 3 13 17 68 AOE 23 | . . . . . . . . . . . . 2 . . . . . . 1 . 20 Classes Destroyed 27 | . 5 1 4 . . 1 3 1 . . . 2 1 . . . 2 . . 2 5 Worker 8 | . . . . . . . 1 . . . 1 . . . . . . . . 3 3 Builder 3 | . . . . . . . . . . . . . . . . . . . . 1 2 Tunneler 3 | . . . 1 . . . . . . . . . . . . . . . . . 2 Hauler 6 | . 2 . . . . . . . . . . . . . . . . 1 . . 3 Recycler 5 | . . . . . . . 1 . . . . 1 . . . 1 . . 1 . 1 Carrier 3 | . . . . . . . . . . . . . . . . . . . . . 3 Operator 8 | . 1 . . . . . . 1 . 2 . 1 . . . . 2 . . . 1 Watcher 29 | . 3 . . . . . 4 2 2 . 2 . . . . 2 2 1 2 1 8 Swarmer 68 | . 6 2 1 . . 5 10 2 . . 2 . 7 4 . 8 . . 5 4 12 Cutter 4 | . . . . . . . . . . . . . . . . . . . . . 4 Saboteur 3 | . . . . . . . . . . . . 1 . . . . . . . . 2 Grunt 98 | . 8 . 2 . . 2 3 8 . . 4 2 5 . . 3 7 2 3 7 42 Brawler 2 | . . . . . . . . . . . . . . . . . . . . . 2 Duelist 10 | . . . . . . . . . . . . 1 . . . 1 1 . 1 . 6 Protector 8 | . . . 4 . . . . . . . . . . . . 1 . . . . 3 Researcher 4 | . . . . . . . . . . . . . . . . . . . . 4 . Sentry 31 | . . . 3 . . . 1 7 . 3 3 3 2 1 . 3 . . 2 1 2 Demolisher 2 | . . . . . . . . . . . . . . . . . . . . . 2 Hunter 28 | . . . . . . . 2 2 . . 2 2 2 . . 5 1 2 1 5 4 Programmer 34 | . . . 2 . . . 7 . . . . 1 3 1 . . . . 3 2 15 Heavy 4 | . . . . . . 1 . . . . . 1 . . . . . . 1 . 1 Q-Series 2 | . . . . . . . . . . . . . . . . . . . . . 2 Behemoth 5 | . . . . . . . . 2 . . . . . . . 2 1 . . . . Cetus Guard 4 | . . . . . . . . . 4 . . . . . . . . . . . . Investigator 1 | . . . . . . . . . . . . . . . . . . . . . 1 Executioner 1 | . . . . . . . . . . . . . . . . . 1 . . . . Protovariant G 1 | . . . . . . . . . . . . . . . . . . . . 1 . Subdweller 10 | . . 10 . . . . . . . . . . . . . . . . . . . Mutant 1 | . . . . . . . . . . . . . 1 . . . . . . . . Revision 2 | . . . . . . . . . . . . . . . . . 2 . . . . Best Kill Streak 24 | . 3 3 2 . . 4 7 4 3 3 5 4 6 4 . 7 4 5 6 8 24 Combat Bots Only 17 | . 3 3 2 . . 4 6 4 2 3 4 4 6 4 . 5 4 4 5 7 17 Max Kills in Single Turn 3 | . 2 1 1 . . 1 2 1 1 1 1 3 1 1 . 2 1 2 3 2 3 Gunslinging 1 | . 1 . . . . . . . . . . . . . . . . . . . . Exploded 3 | . . . . . . . . . . . . 2 . . . . . . 1 . 3 Melee 1 | . . . 1 . . . . . . . . . . . . . . . . . 1 Uniques/NPCs Destroyed . | . . . . . . . . . . . . . . . . . . . . . . Combat | -11 -10 -10 -8 -8 -6 -6 -5 -5 -5 -5 -5 -4 -4 -4 -4 -3 -3 -3 -2 -2 -1 -------- Run | Yrd Mat Sub Rec Scr Fac DSF Fac Ext Cet Arc Hub Fac Upp Upp Zhi Pro Res Qua Res Tes Acc Hostile Shots Fired 1866 | . 71 61 67 . . 60 136 81 19 6 41 98 77 20 . 83 97 16 112 184 637 Missed 695 | . 26 11 16 . . 17 49 26 5 2 21 45 37 10 . 44 44 10 45 64 223 Damage Taken 18384 | . 476 1182 1011 . . 701 1156 735 283 117 422 820 618 117 . 728 786 47 1076 1439 6670 Core 12512 | . 366 678 653 . . 559 819 571 233 93 313 619 423 82 . 517 560 35 776 920 4295 Absorbed by Shields 5691 | . . . 49 . . 253 263 363 114 . . . . . . . 161 50 723 577 3138 Redirected to Core 10918 | . 237 611 496 . . 494 738 472 177 93 273 579 409 70 . 444 534 35 717 765 3774 Ignored by Resistances 3853 | . . . . . . . . . . . 31 202 136 34 . 202 214 28 441 506 2059 Regen/Repaired (Parts) 1321 | . . . . 4 . . . 30 . . . . . . . . 22 . . 158 1107 Core Remaining (%) 74 | 100 . . . 60 . 24 . . . . 88 . . . . 93 . 98 . 58 . Volleys Fired 700 | . 40 107 . . . 14 54 52 15 12 25 18 33 13 . 43 39 10 29 44 152 Largest 4 | . 2 2 . . . 3 3 3 3 3 4 4 4 4 . 4 4 4 4 4 4 Hottest 490 | . 90 200 . . . 260 294 294 294 294 392 392 399 399 . 413 420 420 420 453 490 Shots Fired 1912 | . 80 150 . . . 42 114 152 45 30 88 66 123 31 . 149 117 28 95 147 455 Gun 167 | . 80 87 . . . . . . . . . . . . . . . . . . . Cannon 1663 | . . 61 . . . . 101 152 45 30 88 66 123 31 . 149 117 28 95 147 430 Launcher 25 | . . . . . . . . . . . . . . . . . . . . . 25 Special 57 | . . 2 . . . 42 13 . . . . . . . . . . . . . . Kinetic 94 | . 52 42 . . . . . . . . . . . . . . . . . . . Thermal 1789 | . 28 108 . . . 42 114 152 45 30 88 66 123 31 . 149 117 28 95 143 430 Explosive 25 | . . . . . . . . . . . . . . . . . . . . . 25 Electromagnetic 4 | . . . . . . . . . . . . . . . . . . . . 4 . Robot Hit Streak 60 | . 16 18 . . . 28 13 33 30 26 17 32 15 16 . 60 57 15 35 27 36 Robot Miss Streak 7 | . 7 5 . . . 1 3 1 1 3 2 2 1 1 . 2 1 1 1 2 3 Penetration Max . | . . . . . . . . . . . . . . . . . . . . . . Secondary Targets 6 | . 5 1 . . . . . . . . . . . . . . . . . . . Max Gunslinging Chain 1 | . 1 1 . . . . . . . . . . . . . . . . . . . Shots Hit Robots 1351 | . 63 63 42 . . 38 71 115 42 22 54 52 74 18 . 104 83 18 73 107 312 Core Hits 583 | . 35 20 6 . . 13 38 40 14 8 21 17 27 9 . 37 27 9 25 37 200 Critical Kills 42 | . . 2 2 . . . 1 3 1 2 2 3 2 . . 6 4 1 3 3 7 Critical Parts Destroyed 10 | . . 1 9 . . . . . . . . . . . . . . . . . . Critical Strikes 63 | . 2 6 12 . . 4 2 3 1 2 2 3 2 . . 6 4 1 3 3 7 Burn 10 | . 2 3 . . . 4 1 . . . . . . . . . . . . . . Meltdown 38 | . . . . . . . 1 3 1 2 2 3 2 . . 6 4 1 3 3 7 Destroy 3 | . . 3 . . . . . . . . . . . . . . . . . . . Smash 12 | . . . 12 . . . . . . . . . . . . . . . . . . Melee Attacks 55 | . . . 55 . . . . . . . . . . . . . . . . . . Impact 55 | . . . 55 . . . . . . . . . . . . . . . . . . Slashing . | . . . . . . . . . . . . . . . . . . . . . . Piercing . | . . . . . . . . . . . . . . . . . . . . . . Sneak Attacks 9 | . . . 9 . . . . . . . . . . . . . . . . . . Combat Hostiles 8 | . . . 8 . . . . . . . . . . . . . . . . . . Follow-up Attacks 5 | . . . 5 . . . . . . . . . . . . . . . . . . Damage Inflicted 65046 | . 866 1350 1891 . . 430 2670 4018 1402 746 2106 2703 3099 774 . 4371 3549 871 3432 5018 25750 Guns 1645 | . 866 779 . . . . . . . . . . . . . . . . . . . Cannons 53371 | . . 523 . . . . 2561 4018 1402 746 2080 2031 3099 774 . 4371 3549 871 3218 5018 19110 Explosions 7526 | . . . . . . . . . . . . 672 . . . . . . 214 . 6640 Melee 1891 | . . . 1891 . . . . . . . . . . . . . . . . . . Ramming 58 | . . . . . . . 32 . . . 26 . . . . . . . . . . Kinetic 1109 | . 577 532 . . . . . . . . . . . . . . . . . . . Thermal 55005 | . 289 818 . . . 430 2638 4018 1402 746 2080 2703 3099 774 . 4371 3549 871 3218 4889 19110 Explosive 6854 | . . . . . . . . . . . . . . . . . . . 214 . 6640 Electromagnetic 129 | . . . . . . . . . . . . . . . . . . . . 129 . Impact 1891 | . . . 1891 . . . . . . . . . . . . . . . . . . Slashing . | . . . . . . . . . . . . . . . . . . . . . . Piercing . | . . . . . . . . . . . . . . . . . . . . . . Highest Corruption 13 | . 1 1 3 3 . . 4 4 . . . . 1 1 1 1 2 2 2 2 13 Average Corruption 2 | . 1 1 2 3 . . 3 3 . . . . 1 1 1 1 1 2 1 2 7 Corruption Purged 4 | . . . . . . . . 4 . . . . . . . . . . . . . Corruption Blocked . | . . . . . . . . . . . . . . . . . . . . . . Effects 193 | . 7 32 37 . . . 8 5 . . . . 2 4 1 6 9 3 4 13 62 Message Errors 48 | . 1 7 11 . . . 3 1 . . . . 1 1 . 1 3 1 . 4 14 Matter Fused 40 | . 2 9 6 . . . 1 1 . . . . . 3 1 1 4 . . 1 11 Heat Flow Errors 22 | . 1 3 6 . . . . . . . . . . . . 2 . 2 . 1 7 Energy Discharges 22 | . 3 3 4 . . . 2 2 . . . . 1 . . . . . 1 2 4 Parts Rejected 3 | . . . . . . . . . . . . . . . . . . . 1 1 1 Parts Fused 2 | . . . 1 . . . . . . . . . . . . . . . . . 1 Data Loss (minor) 26 | . . 2 6 . . . . 1 . . . . . . . 2 1 . 1 2 11 Data Loss (major) 8 | . . 1 2 . . . 1 . . . . . . . . . 1 . 1 1 1 Misfires 9 | . . 4 . . . . 1 . . . . . . . . . . . . 1 3 Alerts 5 | . . 3 1 . . . . . . . . . . . . . . . . . 1 Misdirections 1 | . . . . . . . . . . . . . . . . . . . . . 1 Weapon Failures 7 | . . . . . . . . . . . . . . . . . . . . . 7 Overload Shots . | . . . . . . . . . . . . . . . . . . . . . . Overflow Damage 4203 | . . . 720 . . . 30 88 17 12 141 257 138 61 . 134 53 42 224 214 2072 Projectiles 3179 | . . . 3 . . . 30 88 17 12 125 93 138 61 . 134 53 42 224 214 1945 Explosions 291 | . . . . . . . . . . . . 164 . . . . . . . . 127 Melee 733 | . . . 717 . . . . . . . 16 . . . . . . . . . . Knockbacks 16 | . . 2 14 . . . . . . . . . . . . . . . . . . Impact 11 | . . . 11 . . . . . . . . . . . . . . . . . . Kinetic 2 | . . 2 . . . . . . . . . . . . . . . . . . . Secondary 3 | . . . 3 . . . . . . . . . . . . . . . . . . Self-Inflicted Damage 527 | . . . . . . . 15 . . . 13 54 . . . . . . . . 445 Shots 9 | . . . . . . . . . . . . 1 . . . . . . . . 8 Rammed 3 | . . . . . . . 2 . . . 1 . . . . . . . . . . Targets Rammed 3 | . . . . . . . 2 . . . 1 . . . . . . . . . . Kicked . | . . . . . . . . . . . . . . . . . . . . . . Crushed . | . . . . . . . . . . . . . . . . . . . . . . Highest Temperature 569 | . 494 569 281 . . 17 517 482 122 75 196 189 336 318 . 243 372 148 340 493 382 Average Temperature 111 | . 114 95 114 . . 5 190 97 48 31 86 98 121 131 . 108 109 38 126 108 98 Received Heat Transfer 2443 | . 162 902 30 . . 62 . 175 . 18 72 30 132 . . 48 256 5 20 120 411 Effects 47 | . 6 9 5 . . . 13 2 . . . . . 2 . 1 . . 1 4 4 Shutdowns 15 | . 1 5 . . . . 3 2 . . . . . . . . . . 1 1 2 Energy Bleed 8 | . 1 2 1 . . . 3 . . . . . . . . 1 . . . . . Interference 21 | . 2 2 4 . . . 6 . . . . . . 2 . . . . . 3 2 Matter Decay 1 | . . . . . . . 1 . . . . . . . . . . . . . . Damage (major) 2 | . 2 . . . . . . . . . . . . . . . . . . . . Siege Activations . | . . . . . . . . . . . . . . . . . . . . . . Robots Corrupted 8 | . . . 7 . . . . . . . 1 . . . . . . . . . . Combat Hostiles 8 | . . . 7 . . . . . . . 1 . . . . . . . . . . Parts Fried 12 | . . . 11 . . . . . . . 1 . . . . . . . . . . Impact Corruptions 43 | . . . 42 . . . . . . . 1 . . . . . . . . . . Robots Melted 48 | . 1 . . . . 5 2 4 1 2 2 4 2 . . 6 4 1 3 3 8 Combat Hostiles 45 | . 1 . . . . 5 2 4 1 2 2 4 2 . . 5 3 1 2 3 8 Parts Melted 139 | . . . . . . 5 10 24 5 8 3 11 9 1 . 19 12 1 6 6 19 Heat Transferred 56824 | . 917 1497 . . . 3760 4470 6000 2100 1150 2850 3100 3672 885 . 4193 2894 740 2701 3978 11917 Parts Sabotaged 2 | . . . . . . . . . . . . . . . . . . . . . 2 Parts Stolen . | . . . . . . . . . . . . . . . . . . . . . . Parts Stripped . | . . . . . . . . . . . . . . . . . . . . . . Power Chain Reactions . | . . . . . . . . . . . . . . . . . . . . . . Alert | -11 -10 -10 -8 -8 -6 -6 -5 -5 -5 -5 -5 -4 -4 -4 -4 -3 -3 -3 -2 -2 -1 ------- Run | Yrd Mat Sub Rec Scr Fac DSF Fac Ext Cet Arc Hub Fac Upp Upp Zhi Pro Res Qua Res Tes Acc Peak Influence 3435 | . 182 . 145 . 5 198 518 659 561 487 1668 1453 . . . . 518 378 772 1041 3435 Initial 813 | . . . . . . 3 103 192 284 224 . 813 . . . . 39 212 212 362 534 Average 445 | . 75 . 25 . . 79 267 372 466 172 724 1103 . . . . 284 286 479 758 1444 Maximum Alert Level 5 | . . . . . . . 2 2 2 2 5 4 . . . . 2 1 3 3 5 Low Security (%) 45 | 100 100 . 100 . 100 100 47 3 . 62 21 . . . . . 24 . . . . Level 1 19 | . . . . . . . 37 67 21 20 6 . . . . . 65 100 37 5 . Level 2 13 | . . . . . . . 15 29 78 17 11 . . . . . 10 . 56 17 10 Level 3 11 | . . . . . . . . . . . 40 64 . . . . . . 5 77 24 Level 4 5 | . . . . . . . . . . . 15 35 . . . . . . . . 28 Level 5 3 | . . . . . . . . . . . 4 . . . . . . . . . 22 High Security 2 | . . . . . . . . . . . . . . . . . . . . . 14 Max Security . | . . . . . . . . . . . . . . . . . . . . . . Sterilizations 1 | . . . . . . 1 . . . . . . . . . . . . . . . Squads Dispatched 74 | . 1 . . . . 1 5 3 . . 10 4 . . . 1 7 1 7 10 24 Investigation 7 | . . . . . . . . 2 . . 1 . . . . 1 2 . . 1 . Extermination 11 | . . . . . . . 2 . . . . 1 . . . . . . 2 2 4 Reinforcement 31 | . 1 . . . . 1 3 1 . . 8 1 . . . . 5 1 4 3 3 Assault 19 | . . . . . . . . . . . 1 2 . . . . . . . 2 14 Garrison 6 | . . . . . . . . . . . . . . . . . . . 1 2 3 Intercept . | . . . . . . . . . . . . . . . . . . . . . . Searches Triggered . | . . . . . . . . . . . . . . . . . . . . . . Construction Impeded 4 | . . . . . . . 2 1 . . 1 . . . . . . . . . . Haulers Reinforced 5 | . . . . . . . 1 . . . 1 . . . . . 2 1 . . . Active Scanning Responses . | . . . . . . . . . . . . . . . . . . . . . . Cargo Convoy Interrupts . | . . . . . . . . . . . . . . . . . . . . . . Stealth | -11 -10 -10 -8 -8 -6 -6 -5 -5 -5 -5 -5 -4 -4 -4 -4 -3 -3 -3 -2 -2 -1 --------- Run | Yrd Mat Sub Rec Scr Fac DSF Fac Ext Cet Arc Hub Fac Upp Upp Zhi Pro Res Qua Res Tes Acc Distress Signals 24 | . 1 . . . . . 2 1 2 . 2 2 . . . 1 5 1 2 . 5 Communications Jammed 9 | . . . . . . . . . . . . 9 . . . . . . . . . Distress Signals 9 | . . . . . . . . . . . . 9 . . . . . . . . . Times Spotted 628 | . 29 28 14 . . 18 40 28 10 5 41 18 19 6 . 28 37 8 47 58 194 Peak Tracking Total 19 | . 4 7 4 . . 5 6 4 5 1 11 10 7 4 . 6 6 3 9 16 19 Tactical Retreats 54 | . 5 3 4 . . 5 2 . . . . 1 2 1 . . . 1 7 4 19 Traps | -11 -10 -10 -8 -8 -6 -6 -5 -5 -5 -5 -5 -4 -4 -4 -4 -3 -3 -3 -2 -2 -1 ------- Run | Yrd Mat Sub Rec Scr Fac DSF Fac Ext Cet Arc Hub Fac Upp Upp Zhi Pro Res Qua Res Tes Acc Traps Triggered 17 | . 2 . . . . 1 . 2 . . 1 . . . . . 2 . 5 1 3 Indirectly . | . . . . . . . . . . . . . . . . . . . . . . Trap Hack Attempts . | . . . . . . . . . . . . . . . . . . . . . . Triggered . | . . . . . . . . . . . . . . . . . . . . . . Disarmed . | . . . . . . . . . . . . . . . . . . . . . . Reprogrammed . | . . . . . . . . . . . . . . . . . . . . . . Reused . | . . . . . . . . . . . . . . . . . . . . . . Traps Extracted . | . . . . . . . . . . . . . . . . . . . . . . Installed . | . . . . . . . . . . . . . . . . . . . . . . Triggered 1 | . . . . . . . . . . . . . 1 . . . . . . . . Machines | -11 -10 -10 -8 -8 -6 -6 -5 -5 -5 -5 -5 -4 -4 -4 -4 -3 -3 -3 -2 -2 -1 ---------- Run | Yrd Mat Sub Rec Scr Fac DSF Fac Ext Cet Arc Hub Fac Upp Upp Zhi Pro Res Qua Res Tes Acc Machines Disabled 45 | . . . . . . . . 2 . 3 5 9 3 . . 1 5 1 2 8 6 Max in Single Turn 5 | . . . . . . . . 1 . 1 1 5 1 . . 1 1 1 1 1 1 Garrison Access 2 | . . . . . . . . . . . . . . . . . 2 . . . . Energy Cycler 1 | . . . . . . . . . . . . . . . . . . . . . 1 Machines Repaired . | . . . . . . . . . . . . . . . . . . . . . . Machines Dismantled . | . . . . . . . . . . . . . . . . . . . . . . Machines Sabotaged . | . . . . . . . . . . . . . . . . . . . . . . Overloaded Fab Kills . | . . . . . . . . . . . . . . . . . . . . . . Hacking | -11 -10 -10 -8 -8 -6 -6 -5 -5 -5 -5 -5 -4 -4 -4 -4 -3 -3 -3 -2 -2 -1 --------- Run | Yrd Mat Sub Rec Scr Fac DSF Fac Ext Cet Arc Hub Fac Upp Upp Zhi Pro Res Qua Res Tes Acc Machines Accessed 48 | . 2 . 2 7 1 . 2 7 3 . 1 3 1 1 9 3 4 1 . 1 . Terminals 26 | . 2 . 1 . 1 . 2 6 3 . 1 3 1 . . 1 3 1 . 1 . Fabricators 1 | . . . . . . . . . . . . . . . . 1 . . . . . Repair Stations 2 | . . . . . . . . 1 . . . . . . . . 1 . . . . Recycling Units 2 | . . . 1 . . . . . . . . . . . . 1 . . . . . Scanalyzers . | . . . . . . . . . . . . . . . . . . . . . . Garrison Access . | . . . . . . . . . . . . . . . . . . . . . . Total Hacks 127 | . 5 . 2 21 2 . 3 11 7 . 3 7 3 1 48 4 7 1 . 2 . Successful 102 | . 3 . 1 21 1 . 2 5 5 . 2 3 3 1 48 1 5 . . 1 . Failed 25 | . 2 . 1 . 1 . 1 6 2 . 1 4 . . . 3 2 1 . 1 . Catastrophic 8 | . 1 . . . . . . 3 . . 1 1 . . . 1 1 . . . . Database Lockouts . | . . . . . . . . . . . . . . . . . . . . . . Manual 1 | . . . . . . . . . 1 . . . . . . . . . . . . Terminals 48 | . 5 . 1 . 2 . 3 9 7 . 3 7 3 . . 1 4 1 . 2 . Fabricators 1 | . . . . . . . . . . . . . . . . 1 . . . . . Repair Stations 5 | . . . . . . . . 2 . . . . . . . . 3 . . . . Recycling Units 3 | . . . 1 . . . . . . . . . . . . 2 . . . . . Scanalyzers . | . . . . . . . . . . . . . . . . . . . . . . Garrison Access . | . . . . . . . . . . . . . . . . . . . . . . Terminal Hacks 97 | . 3 . . 21 1 . 2 3 5 . 2 3 3 1 48 1 3 . . 1 . Record 66 | . . . . 20 . . . . 4 . 2 . 3 . 36 . 1 . . . . Part Schematic 4 | . . . . . . . . . . . . . . . 4 . . . . . . Robot Analysis 4 | . . . . . . . . . . . . . . . 4 . . . . . . Prototype ID Bank 4 | . . . . . . . . . . . . . . . 4 . . . . . . Open Door 6 | . . . . . . . 1 1 1 . . . . 1 . 1 . . . 1 . Open DSF 1 | . . . . . 1 . . . . . . . . . . . . . . . . Branch Access Points 3 | . 1 . . . . . . . . . . 1 . . . . 1 . . . . Alert Level 2 | . 1 . . . . . . . . . . 1 . . . . . . . . . Unreport Threat 1 | . . . . . . . . 1 . . . . . . . . . . . . . Locate Traps 2 | . . . . . . . 1 . . . . 1 . . . . . . . . . Hauler Manifests 1 | . 1 . . . . . . . . . . . . . . . . . . . . Zone Layout 2 | . . . . . . . . 1 . . . . . . . . 1 . . . . Derelict Proto ID Bank 1 | . . . . 1 . . . . . . . . . . . . . . . . . Fabricator Hacks . | . . . . . . . . . . . . . . . . . . . . . . Repair Station Hacks 4 | . . . . . . . . 2 . . . . . . . . 2 . . . . Scan Component 2 | . . . . . . . . 1 . . . . . . . . 1 . . . . Repair 2 | . . . . . . . . 1 . . . . . . . . 1 . . . . Recycling Unit Hacks 1 | . . . 1 . . . . . . . . . . . . . . . . . . Report Inventory 1 | . . . 1 . . . . . . . . . . . . . . . . . . Scanalyzer . | . . . . . . . . . . . . . . . . . . . . . . Garrison Access Hacks . | . . . . . . . . . . . . . . . . . . . . . . Unauthorized Hacks . | . . . . . . . . . . . . . . . . . . . . . . Terminals . | . . . . . . . . . . . . . . . . . . . . . . Fabricators . | . . . . . . . . . . . . . . . . . . . . . . Repair Stations . | . . . . . . . . . . . . . . . . . . . . . . Recycling Units . | . . . . . . . . . . . . . . . . . . . . . . Scanalyzers . | . . . . . . . . . . . . . . . . . . . . . . Garrison Access . | . . . . . . . . . . . . . . . . . . . . . . Data Cores Recovered 4 | . . . . . . . . 1 . . . . . . . . 2 . . . 1 Used 1 | . . . . . . . . . . . . . . . . . 1 . . . . Hacking Detections 26 | . 1 . 1 . 1 . 2 6 2 . 1 2 1 . . 3 4 1 . 1 . Full Trace Events 2 | . . . . . . . . 2 . . . . . . . . . . . . . Feedback Events . | . . . . . . . . . . . . . . . . . . . . . . Feedback Blocked . | . . . . . . . . . . . . . . . . . . . . . . Robot Schematics Acquired . | . . . . . . . . . . . . . . . . . . . . . . Robots Built . | . . . . . . . . . . . . . . . . . . . . . . Authchips . | . . . . . . . . . . . . . . . . . . . . . . Time . | . . . . . . . . . . . . . . . . . . . . . . Total Robot Build Rating . | . . . . . . . . . . . . . . . . . . . . . . Part Schematics Acquired 8 | . . . . . . . . . . . . . . . 4 . . . . 4 . Parts Built . | . . . . . . . . . . . . . . . . . . . . . . Authchips . | . . . . . . . . . . . . . . . . . . . . . . Time . | . . . . . . . . . . . . . . . . . . . . . . Total Part Build Rating . | . . . . . . . . . . . . . . . . . . . . . . Parts Repaired 2 | . . . . . . . . 1 . . . . . . . . 1 . . . . Time 100 | . . . . . . . . 50 . . . . . . . . 50 . . . . Parts Recycled . | . . . . . . . . . . . . . . . . . . . . . . Recycled Matter . | . . . . . . . . . . . . . . . . . . . . . . Retrieved Matter . | . . . . . . . . . . . . . . . . . . . . . . Retrieved Components . | . . . . . . . . . . . . . . . . . . . . . . Parts Scanalyzed . | . . . . . . . . . . . . . . . . . . . . . . Part Schematics Acquired . | . . . . . . . . . . . . . . . . . . . . . . Parts Damaged . | . . . . . . . . . . . . . . . . . . . . . . Bothacking | -11 -10 -10 -8 -8 -6 -6 -5 -5 -5 -5 -5 -4 -4 -4 -4 -3 -3 -3 -2 -2 -1 ------------ Run | Yrd Mat Sub Rec Scr Fac DSF Fac Ext Cet Arc Hub Fac Upp Upp Zhi Pro Res Qua Res Tes Acc Used RIF Installer . | . . . . . . . . . . . . . . . . . . . . . . Robots Hacked . | . . . . . . . . . . . . . . . . . . . . . . Non-combat . | . . . . . . . . . . . . . . . . . . . . . . Combat . | . . . . . . . . . . . . . . . . . . . . . . Robot Hacks Applied . | . . . . . . . . . . . . . . . . . . . . . . Relay Couplers Released 2 | . . . . . . . . . . . . . . . . . 2 . . . . Machine Destruction 2 | . . . . . . . . . . . . . . . . . 2 . . . . Fabnet Peak Effective % . | . . . . . . . . . . . . . . . . . . . . . . Robots Rewired . | . . . . . . . . . . . . . . . . . . . . . . Allies Hacked . | . . . . . . . . . . . . . . . . . . . . . . Hacks Repelled . | . . . . . . . . . . . . . . . . . . . . . . Allies | -11 -10 -10 -8 -8 -6 -6 -5 -5 -5 -5 -5 -4 -4 -4 -4 -3 -3 -3 -2 -2 -1 -------- Run | Yrd Mat Sub Rec Scr Fac DSF Fac Ext Cet Arc Hub Fac Upp Upp Zhi Pro Res Qua Res Tes Acc Total Allies 42 | . . . . . . . . 1 5 . . . . . . . . . . . 36 Largest Group 8 | . . . . . . . . 1 5 5 4 . . . . . . . . . 8 Highest-Rated Group 543 | . . . . . . . . 159 543 527 384 . . . . . . . . . 116 Highest-Rated Ally 159 | . . . . . . . . 159 159 143 96 . . . . . . . . . 15 Total Orders 8 | . . . . . . . . . . 2 . . . . . . . . . . 6 STAY 1 | . . . . . . . . . . 1 . . . . . . . . . . . ROAM 1 | . . . . . . . . . . . . . . . . . . . . . 1 FOLLOW 1 | . . . . . . . . . . 1 . . . . . . . . . . . EXPLORE 4 | . . . . . . . . . . . . . . . . . . . . . 4 RETURN 1 | . . . . . . . . . . . . . . . . . . . . . 1 Ally Attacks 273 | . . . . . . . . 26 25 5 77 . . . . . . . . . 140 Total Damage 7420 | . . . . . . . . 934 776 138 2737 . . . . . . . . . 2835 Kills 45 | . . . . . . . . 8 4 1 19 . . . . . . . . . 13 Allies Corrupted . | . . . . . . . . . . . . . . . . . . . . . . Allies Melted . | . . . . . . . . . . . . . . . . . . . . . . Intel | -11 -10 -10 -8 -8 -6 -6 -5 -5 -5 -5 -5 -4 -4 -4 -4 -3 -3 -3 -2 -2 -1 ------- Run | Yrd Mat Sub Rec Scr Fac DSF Fac Ext Cet Arc Hub Fac Upp Upp Zhi Pro Res Qua Res Tes Acc Robot Analysis Total 4 | . . . . . . . . . . . . . . . 4 . . . . . . Derelict Logs Recovered 3 | . . 1 . . . . . . . . . . . 2 . . . . . . . Drone Launches 6 | . . . . . . . . . . . . . . . . . . . . . 6 Drone Recoveries 4 | . . . . . . . . . . . . . . . . . . . . . 4 Exploration | -11 -10 -10 -8 -8 -6 -6 -5 -5 -5 -5 -5 -4 -4 -4 -4 -3 -3 -3 -2 -2 -1 ------------- Run | Yrd Mat Sub Rec Scr Fac DSF Fac Ext Cet Arc Hub Fac Upp Upp Zhi Pro Res Qua Res Tes Acc Turns Passed 23962 | 63 1641 4423 2183 1589 44 336 903 807 327 2121 344 379 1559 726 116 1238 1530 128 537 832 2136 Spaces Moved 26284 | 50 1186 3264 1763 2796 58 347 938 721 463 240 461 677 2353 1504 217 2294 2402 210 780 1111 2449 Core 26 | 11 . 12 1 . . . 2 . . . . . . . . . . . . . . Treads . | . . . . . . . . . . . . . . . . . . . . . . Legs 5295 | 39 1186 3153 917 . . . . . . . . . . . . . . . . . . Wheels 99 | . . 99 . . . . . . . . . . . . . . . . . . . Hover 20364 | . . . 845 2796 58 11 772 721 463 240 461 677 2353 1504 217 2294 2402 210 780 1111 2449 Flight 500 | . . . . . . 336 164 . . . . . . . . . . . . . . Fastest Speed 33 | 50 120 110 56 56 56 34 34 43 50 46 41 33 40 40 36 40 38 40 37 35 35 Average Speed 62 | 104 120 121 108 56 56 35 63 56 50 48 43 40 40 40 41 40 39 40 45 45 47 Slowest Speed 190 | 120 120 190 120 56 56 120 111 102 50 50 46 98 100 40 108 40 104 40 103 98 103 Overloaded Moves 2 | . . . . . . . 2 . . . . . . . . . . . . . . Propulsion Burnouts . | . . . . . . . . . . . . . . . . . . . . . . Robots Hopped 1 | . . . . . . . 1 . . . . . . . . . . . . . . Cave-ins Triggered . | . . . . . . . . . . . . . . . . . . . . . . Exploration Rate (%) 62 | 3 85 87 99 95 1 96 19 79 92 99 38 19 98 99 62 91 45 32 22 54 53 Regions Visited 21 Branch Regions 13 Pre-discovered Areas 5 | . . 1 . . . . . . . . . . . 1 3 . . . . . . Known Exits Taken 3 | . . . . . 1 . . . . . . 1 . . . . 1 . . . . Unknown Exits Taken 17 | 1 1 1 1 1 . . 1 1 1 1 1 . 1 1 1 1 . 1 1 1 . Scrap Searched 30 | . . 12 . 6 . . . . . . . . 5 4 . 3 . . . . . Spaces Dug 15 | . . 6 . . . . . . . . . 1 2 2 . . 3 . . 1 . Terrain Destroyed 736 | . . 14 . . . . 17 16 1 3 20 105 36 11 . 20 14 1 9 22 447 Melee . | . . . . . . . . . . . . . . . . . . . . . . Projectile 264 | . . 14 . . . . 17 16 1 3 20 4 36 11 . 20 14 1 9 22 76 AOE 472 | . . . . . . . . . . . . 101 . . . . . . . . 371 Terrain Rammed . | . . . . . . . . . . . . . . . . . . . . . . Walls Destroyed . | . . . . . . . . . . . . . . . . . . . . . . Machines Disabled . | . . . . . . . . . . . . . . . . . . . . . . Actions | -11 -10 -10 -8 -8 -6 -6 -5 -5 -5 -5 -5 -4 -4 -4 -4 -3 -3 -3 -2 -2 -1 --------- Run | Yrd Mat Sub Rec Scr Fac DSF Fac Ext Cet Arc Hub Fac Upp Upp Zhi Pro Res Qua Res Tes Acc Total 32152 | 57 1323 3564 1932 2819 68 490 1142 1007 524 2221 541 740 2892 1606 242 2516 2896 235 891 1342 3104 Wait 4027 | 2 57 102 67 6 4 95 78 130 35 1960 43 13 436 70 7 130 385 3 43 100 261 Move 26260 | 49 1185 3263 1762 2795 57 346 935 720 462 239 460 676 2352 1503 216 2292 2401 209 779 1110 2449 Hop 1 | . . . . . . . 1 . . . . . . . . . . . . . . Pick Up 51 | . 2 6 1 1 . 2 2 1 1 . 2 4 3 3 2 5 2 4 . 5 5 Fast Attach 162 | 6 9 16 10 6 3 5 13 10 . 2 1 2 3 . 7 5 8 . 6 15 35 Attach 36 | . . . 1 . . 2 2 1 . 1 2 4 1 . 1 1 3 4 1 4 8 Detach 43 | . . 1 2 1 . 1 1 4 . 1 . 4 2 . . 1 4 1 3 6 11 Swap 63 | . 1 . . 2 1 . . 5 . 1 . 9 6 5 1 1 . 1 1 11 18 Drop 180 | . 9 22 7 8 3 3 11 9 . 1 . 10 7 5 8 11 7 3 2 19 35 Fire 700 | . 40 107 . . . 14 54 52 15 12 25 18 33 13 . 43 39 10 29 44 152 Melee 48 | . . . 48 . . . . . . . . . . . . . . . . . . Ram 3 | . . . . . . . 2 . . . 1 . . . . . . . . . . Kick . | . . . . . . . . . . . . . . . . . . . . . . Crush . | . . . . . . . . . . . . . . . . . . . . . . Escape Stasis 92 | . . . . . . 18 . 26 . . . . . . . 1 13 . 12 2 20 Rewire 5 | . . . 3 . . . . 1 . . . . 1 . . . . . . . . Trap . | . . . . . . . . . . . . . . . . . . . . . . Miscellaneous 481 | . 20 47 31 . . 4 43 48 11 4 7 . 48 7 . 26 34 . 15 26 110 Route ------- -11/Scrapyard -10/Materials (discovered 5 exits: [*Mat x3] / *Min / [*Sub]) -10/Subcaves (discovered 3 exits: [*Mat x2] / *Rec) -8/Recycling (discovered 2 exits: *Fac / *Scr) -8/Scraptown (discovered 2 exits: *Fac x2) -6/Factory -6/DSF -5/Factory -5/Extension (discovered 2 exits: *Fac / *Cet) -5/Cetus (discovered 3 exits: *Fac x2 / *Arc) -5/Archives (discovered 3 exits: *Fac / *Hub x2) -5/Hub_04(d) -4/Factory (discovered 3 exits: *Upp x2 / Arm) -4/Upper Caves -4/Upper Caves (discovered 2 exits: *Res / *Zhi) -4/Zhirov -3/Proximity Caves -3/Research (discovered 4 exits: *Res x2 / *Qua x2) -3/Quarantine -2/Research -2/Testing -1/Access History --------- Turn | Location | Event 8 | -11/Scrapyard | Discovered new exit (range 16) 10 | -11/Scrapyard | Upgraded with Power slot (x1) 10 | -11/Scrapyard | Upgraded with Propulsion slot (x1) 29 | -11/Scrapyard | Upgraded with Weapon slot (x1) 64 | -11/Scrapyard | Entered Materials 273 | -10/Materials | Discovered new exit (range 14) 325 | -10/Materials | Build established: Mutant 738 | -10/Materials | Discovered new exit (range 16) 956 | -10/Materials | Discovered new exit (range 9) 981 | -10/Materials | Identified exit to Mines 1051 | -10/Materials | Reached level 2 1111 | -10/Materials | Upgraded with Utility slot (x1) 1694 | -10/Materials | Discovered new exit (range 8) 1705 | -10/Materials | Entered Subcaves 1721 | -10/Subcaves | Learned location of Zion (-6) 1721 | -10/Subcaves | Met a Zionite searching for "candidates" 1780 | -10/Subcaves | Disturbed a concealed Subdweller 1915 | -10/Subcaves | Ambushed by swarm of Subdwellers 2095 | -10/Subcaves | Build established: Subdweller-Mutant 2124 | -10/Subcaves | Reached level 3 2134 | -10/Subcaves | Discovered new exit (range 13) 2230 | -10/Subcaves | Upgraded with Utility slot (x1) 2313 | -10/Subcaves | Shifting Twisted Machinery released Sub. Power Source 2478 | -10/Subcaves | Shifting Twisted Machinery released Slug Cannon 2485 | -10/Subcaves | Shifting Twisted Machinery released Battle Rifle 2515 | -10/Subcaves | Build established: Scavenger-Mutant 2640 | -10/Subcaves | Ambushed by Subdweller buried in earth 2724 | -10/Subcaves | A swath of the cavern ceiling suddenly collapsed 3191 | -10/Subcaves | Discovered new exit (range 17) 3598 | -10/Subcaves | A swath of the cavern ceiling suddenly collapsed 4453 | -10/Subcaves | Shifting Twisted Machinery released Sub. Beam Cannon 4460 | -10/Subcaves | Shifting Twisted Machinery released Sub. Monowheel 4513 | -10/Subcaves | Discovered new exit (range 9) 4661 | -10/Subcaves | Learned 4 Materials zone layouts 6128 | -10/Subcaves | Entered Recycling 6129 | -8/Recycling | Met a Zionite searching for Scraptown 6129 | -8/Recycling | Joined Warlord attack on 0b10 via Recycling 6498 | -8/Recycling | Build established: Scavenger-Gladiator 6817 | -8/Recycling | Core integrity fell below 50% 7209 | -8/Recycling | Reached level 4 7502 | -8/Recycling | Upgraded with Weapon slot (x1) 7558 | -8/Recycling | Build established: Gladiator 7733 | -8/Recycling | Scanned before Scraplab entrance 7956 | -8/Recycling | Discovered new exit (range 17) 8298 | -8/Recycling | Entered Scraplab 8309 | -8/Recycling | Discovered new exit (range 4) 8311 | -8/Recycling | Entered Scraptown 8343 | -8/Scraptown | System corruption cleaned by C-Scrubber 8583 | -8/Scraptown | Discovered new exit (range 5) 8653 | -8/Scraptown | Visited Shadow of the Wyrm 8674 | -8/Scraptown | Build established: Mutant 8683 | -8/Scraptown | Visited UFD Registry 8692 | -8/Scraptown | Heard Great Nut preacher, LISTEN AND RECITE! 8699 | -8/Scraptown | Visited Junk Repository 8718 | -8/Scraptown | Visited Symbiants 8861 | -8/Scraptown | Visited Scrapoid Research Area 8883 | -8/Scraptown | Visited Supply Room 8890 | -8/Scraptown | Visited Cyclists 9118 | -8/Scraptown | Registered with UFD as "Megahead" 9150 | -8/Scraptown | Entered Cyclist Reading Room 9205 | -8/Scraptown | Visited Curators Association 9229 | -8/Scraptown | Visited DA-N13 Charitable Foundation 9238 | -8/Scraptown | Found DCF Scrap (32 items) 9287 | -8/Scraptown | Visited Infowarlord's Domain 9357 | -8/Scraptown | Visited Derelict Rescue Squad 9380 | -8/Scraptown | Visited LU-1G1's Boring Crew 9425 | -8/Scraptown | Visited Science Guys 9453 | -8/Scraptown | Visited Abandonware Association 9474 | -8/Scraptown | Learned abandonware demo "SHUTEYE.EXE" 9474 | -8/Scraptown | Learned abandonware demo "ERRANTS.EXE" 9533 | -8/Scraptown | Build established: Derelict-Tank 9647 | -8/Scraptown | Visited Scrapoid Pod Storage 9662 | -8/Scraptown | Visited Chapter 10 9701 | -8/Scraptown | Discovered new exit (range 3) 9716 | -8/Scraptown | Found Scrap Suit 9900 | -8/Scraptown | Entered Factory 9902 | -6/Factory | Reached level 5 9915 | -6/Factory | Upgraded with Propulsion slot (x1) 9915 | -6/Factory | Upgraded with Utility slot (x1) 9943 | -6/Factory | Identified exit to DSF 9944 | -6/Factory | Entered DSF 9946 | -6/DSF | Reached level 6 10019 | -6/DSF | Build established: Pyromaniac-Gunner 10024 | -6/DSF | Additional patrols routed to DSF 10073 | -6/DSF | Core integrity fell below 50% 10093 | -6/DSF | Discovered new exit (range 14) 10228 | -6/DSF | Reached level 7 10255 | -6/DSF | Sterilization system engaged 10275 | -6/DSF | Ambient heat levels rising (+10) 10280 | -6/DSF | Entered Factory 10281 | -5/Factory | Core integrity fell below 50% 10282 | -5/Factory | Reached level 8 10334 | -5/Factory | Core integrity fell below 20% 10735 | -5/Factory | Reached level 9 10738 | -5/Factory | Upgraded with Utility slot (x1) 11050 | -5/Factory | Build established: Gunner 11051 | -5/Factory | Reached level 10 11167 | -5/Factory | Discovered new exit (range 5) 11183 | -5/Factory | Entered Extension 11342 | -5/Extension | Reached level 11 11361 | -5/Extension | Upgraded with Power slot (x1) 11361 | -5/Extension | Upgraded with Propulsion slot (x1) 11513 | -5/Extension | Rescued A7 11553 | -5/Extension | Spotted B-75 Beast 11554 | -5/Extension | Destroyed B-75 Beast 11559 | -5/Extension | Spotted B-75 Beast 11605 | -5/Extension | Destroyed B-75 Beast 11625 | -5/Extension | Reached level 12 11776 | -5/Extension | Repaired Phase Shifter 11799 | -5/Extension | Build established: Scavenger-Gunner 11890 | -5/Extension | Reached level 13 11973 | -5/Extension | Discovered new exit (range 10) 11974 | -5/Extension | Discovered new exit (range 6) 11990 | -5/Extension | Entered Cetus 11990 | -5/Cetus | Accompanied by 1 ally (A7) 11995 | -5/Cetus | Acquired a Cetus Manufacturing Module code from A7 11998 | -5/Cetus | Spotted Cetus Guard 11998 | -5/Cetus | Spotted Cetus Guard 12007 | -5/Cetus | Allies destroyed Cetus Guard 12007 | -5/Cetus | Spotted Cetus Guard 12010 | -5/Cetus | Destroyed Cetus Guard 12010 | -5/Cetus | Spotted Cetus Guard 12016 | -5/Cetus | Allies destroyed Cetus Guard 12023 | -5/Cetus | Destroyed Cetus Guard 12052 | -5/Cetus | Started Cetus Manufacturing Module 12063 | -5/Cetus | Escorted A7 to Cetus Mainframe 12077 | -5/Cetus | Manufactured an Enhanced Grunt 12102 | -5/Cetus | Manufactured an Enhanced Grunt 12127 | -5/Cetus | Manufactured an Enhanced Grunt 12128 | -5/Cetus | Discovered new exit (range 18) 12140 | -5/Cetus | Reached level 14 12141 | -5/Cetus | Spotted Cetus Guard 12141 | -5/Cetus | Spotted Cetus Guard 12145 | -5/Cetus | Spotted Cetus Guard 12152 | -5/Cetus | Manufactured an Enhanced Grunt 12159 | -5/Cetus | Spotted Cetus Guard 12165 | -5/Cetus | Allies destroyed Cetus Guard 12170 | -5/Cetus | Destroyed Cetus Guard 12175 | -5/Cetus | Destroyed Cetus Guard 12177 | -5/Cetus | Manufactured an Enhanced Grunt 12177 | -5/Cetus | Allies destroyed Cetus Guard 12196 | -5/Cetus | Discovered new exit (range 18) 12245 | -5/Cetus | Discovered new exit (range 17) 12317 | -5/Cetus | Entered Archives 12317 | -5/Archives | Accompanied by 5 allies (A7) 12319 | -5/Archives | Reached level 15 12322 | -5/Archives | Received a hacking code to weaken MAIN.C 12353 | -5/Archives | Discovered new exit (range 18) 12355 | -5/Archives | Discovered new exit (range 18) 12365 | -5/Archives | Upgraded with Propulsion slot (x1) 12365 | -5/Archives | Upgraded with Utility slot (x1) 12434 | -5/Archives | Discovered new exit (range 18) 12438 | -5/Archives | Unable to access archive contents 14438 | -5/Archives | Entered Hub_04(d) 14438 | -5/Hub_04(d) | Accompanied by 4 allies 14440 | -5/Hub_04(d) | Reached level 16 14512 | -5/Hub_04(d) | Reached level 17 14544 | -5/Hub_04(d) | Reached level 18 14624 | -5/Hub_04(d) | Upgraded with Propulsion slot (x1) 14624 | -5/Hub_04(d) | Upgraded with Weapon slot (x1) 14628 | -5/Hub_04(d) | Upgraded with Utility slot (x1) 14650 | -5/Hub_04(d) | Discovered new exit (range 18) 14666 | -5/Hub_04(d) | Reached level 19 14726 | -5/Hub_04(d) | Reached level 20 14738 | -5/Hub_04(d) | First assault squad dispatched 14760 | -5/Hub_04(d) | Reached level 21 14782 | -5/Hub_04(d) | Entered Factory 14784 | -4/Factory | Reached level 22 14873 | -4/Factory | Identified exit to Upper Caves 14873 | -4/Factory | Identified exit to Armory 15037 | -4/Factory | Reached level 23 15070 | -4/Factory | First assault squad dispatched 15154 | -4/Factory | Core integrity fell below 50% 15161 | -4/Factory | Entered Upper Caves 15264 | -4/Upper Caves | Found DCF Scrap (10 items) 15294 | -4/Upper Caves | Attacked by a delusional Derelict stockpiling Unaware 15416 | -4/Upper Caves | Build established: Pyromaniac-Gunner 15842 | -4/Upper Caves | Discovered new exit (range 14) 16070 | -4/Upper Caves | Attracted the attention of an 0b10 base 16096 | -4/Upper Caves | Reached level 24 16262 | -4/Upper Caves | Ambushed by research squad 16717 | -4/Upper Caves | Build established: Derelict-Gunner 16720 | -4/Upper Caves | Entered another Upper Caves area 16809 | -4/Upper Caves | Discovered new exit (range 17) 16811 | -4/Upper Caves | Encountered a Warlord checkpoint 16846 | -4/Upper Caves | Learned location of Testing (-2) 17108 | -4/Upper Caves | Learned location of 1 exit from Research 17160 | -4/Upper Caves | Build established: Scavenger-Gunner 17294 | -4/Upper Caves | Discovered new exit (range 13) 17446 | -4/Upper Caves | Entered Zhirov 17446 | -4/Zhirov | Discovered new exit (range 5) 17448 | -4/Zhirov | Reached level 25 17455 | -4/Zhirov | Met Zhirov 17464 | -4/Zhirov | Learned location of Quarantine (-3) 17464 | -4/Zhirov | Learned location of Command (-1) 17476 | -4/Zhirov | Zhirov requested help retrieving the SGEMP Prototype 17484 | -4/Zhirov | Found Alien Artifact 17485 | -4/Zhirov | Identified Integrated Dissipator 17485 | -4/Zhirov | Installed Integrated Dissipator, increased core heat dissipation (+20) 17562 | -4/Zhirov | Entered Proximity Caves 17645 | -3/Proximity Caves | Reached level 26 17787 | -3/Proximity Caves | Build established: Gunner 17882 | -3/Proximity Caves | Received a Behemoth hack from an annoying Tinkerer 17964 | -3/Proximity Caves | Spotted B-86 Titan 18111 | -3/Proximity Caves | Snuck into a huge 0b10 base via the rear entrance 18164 | -3/Proximity Caves | Derelicts attacked a huge 0b10 base 18183 | -3/Proximity Caves | Discovered new exit (range 5) 18231 | -3/Proximity Caves | Lost 5 allies 18325 | -3/Proximity Caves | Spotted B-86 Titan 18385 | -3/Proximity Caves | Destroyed B-86 Titan 18544 | -3/Proximity Caves | Destroyed B-86 Titan 18800 | -3/Proximity Caves | Entered Research 18801 | -3/Research | Identified exit to Quarantine 18802 | -3/Research | Reached level 27 18812 | -3/Research | Discovered new exit (range 18) 18856 | -3/Research | Build established: Derelict-Gunner 18997 | -3/Research | Reached level 28 19000 | -3/Research | Revision forces began assault on 0b10 19023 | -3/Research | Met up with Revision 17++ 19128 | -3/Research | Spotted B-86 Titan 19132 | -3/Research | Destroyed B-86 Titan 19500 | -3/Research | Research terminal network offline 19553 | -3/Research | Discovered new exit (range 11) 19593 | -3/Research | Upgraded with Propulsion slot (x1) 19596 | -3/Research | Upgraded with Utility slot (x1) 19851 | -3/Research | Repaired Imp. Particle Charger 19895 | -3/Research | Spotted Striker 20175 | -3/Research | Spotted Executioner 20177 | -3/Research | Spotted Striker 20231 | -3/Research | Spotted Executioner 20232 | -3/Research | Spotted Striker 20233 | -3/Research | Destroyed Executioner 20330 | -3/Research | Entered Quarantine 20332 | -3/Quarantine | Reached level 29 20400 | -3/Quarantine | Found Alien Artifact 20406 | -3/Quarantine | Identified Terrabomb 20406 | -3/Quarantine | Used Terrabomb 20438 | -3/Quarantine | Discovered new exit (range 14) 20444 | -3/Quarantine | Found Alien Artifact 20445 | -3/Quarantine | Identified Core Reset Matrix 20445 | -3/Quarantine | Used Core Reset Matrix 20449 | -3/Quarantine | Detected hypermatrix surge 20449 | -3/Quarantine | Sensed 8 artifacts in vicinity 20458 | -3/Quarantine | Entered Research 20460 | -2/Research | Reached level 30 20647 | -2/Research | Garrison activated, responded to threat 20726 | -2/Research | Spotted B-90 Cyclops 20809 | -2/Research | Discovered new exit (range 7) 20815 | -2/Research | Reached level 31 20995 | -2/Research | Entered Testing 21101 | -2/Testing | Build established: Scavenger-Gunner 21105 | -2/Testing | Destroyed 7 combat bots 21318 | -2/Testing | Found Prototype Device 21320 | -2/Testing | Identified Exp. Hardlight Generator 21343 | -2/Testing | Found Prototype Energy Cannon 21344 | -2/Testing | Identified Null Cannon 21356 | -2/Testing | Spotted PG-36FPNG294V 21393 | -2/Testing | Destroyed PG-36FPNG294V 21417 | -2/Testing | Found Prototype Protection 21417 | -2/Testing | Identified Med. Regenerative Plating 21422 | -2/Testing | Found Prototype Protection 21422 | -2/Testing | Identified Hvy. Regenerative Plating 21424 | -2/Testing | Found Prototype Protection 21424 | -2/Testing | Identified Lgt. Regenerative Plating 21534 | -2/Testing | Reached level 32 21546 | -2/Testing | Upgraded with Propulsion slot (x1) 21634 | -2/Testing | Garrison activated, responded to threat 21738 | -2/Testing | Scanned by Researcher 21774 | -2/Testing | First assault squad dispatched 21820 | -2/Testing | Discovered new exit (range 17) 21827 | -2/Testing | Entered Access 21829 | -1/Access | Reached level 33 22114 | -1/Access | First assault squad dispatched 22149 | -1/Access | Core integrity fell below 50% 22248 | -1/Access | Emitted hypermatrix ping 22253 | -1/Access | Assembled emerged from beneath the floor 22277 | -1/Access | Reached level 34 22425 | -1/Access | Lost 3 allies 22526 | -1/Access | Spotted B-99 Colossus 22609 | -1/Access | Spotted B-99 Colossus 22681 | -1/Access | Energy Cycler disabled 22827 | -1/Access | Assembled emerged from beneath the floor 22878 | -1/Access | Reached level 35 22908 | -1/Access | Assembled emerged from beneath the floor 22941 | -1/Access | Lost 13 allies 23124 | -1/Access | Spotted B-99 Colossus 23138 | -1/Access | Build established: Gunner 23169 | -1/Access | Spotted B-99 Colossus 23171 | -1/Access | Spotted B-99 Colossus 23178 | -1/Access | Core integrity fell below 20% 23367 | -1/Access | Assembled emerged from beneath the floor 23402 | -1/Access | Spotted B-99 Colossus 23402 | -1/Access | Garrison activated, responded to threat 23445 | -1/Access | Lost 8 allies 23653 | -1/Access | High security lockdown imminent 23733 | -1/Access | High security lockdown engaged 23759 | -1/Access | Reached level 36 23796 | -1/Access | Destroyed 9 combat bots 23853 | -1/Access | System corruption reached 10% 23902 | -1/Access | Assembled emerged from beneath the floor 23917 | -1/Access | Spotted Investigator 23928 | -1/Access | Destroyed Investigator 23947 | -1/Access | Spotted Striker 23950 | -1/Access | Lost 8 allies 23963 | -1/Access | Destroyed by H-88 Terminator via exploding Wave Collapse Detector Last Messages --------------- 23955_ Penetrated by Slug. 23956_ B-74 Champion suffers critical hit (Destroy). 23956_ B-74 Champion destroyed. 23956_ Slug penetrates Wall. 23956_ Dropped Enh. Nova Cannon. 23956_ Knocked back. 23957_ Acquired Null Cannon. 23958_ The unstable cave ceiling collapses. 23958_ Penetrated by Slug. 23958_ M-36 Artificer destroyed. 23960_ Penetrated by Slug. 23961_ Slug penetrates L-61 Swordsman. 23961_ G-73 Enforcer destroyed. 23961_ M-36 Artificer repairs H-88 Terminator. 23961_ Slug penetrates Wall. 23961_ Penetrated by Slug. 23962_ The unstable cave ceiling collapses. 23963_ Penetrated by Slug. 23963_ Wave Collapse Detector explodes. [Achievement: Torch] Map ----- +----------------------------------------------------+ | ?????????????????# #????????????????????????????? | | ?????????????????# #????????????????????????????? | | ?????????????????# #????????????????????????????? | | ?????????????????# #????????????????????????????? | | ?????????????????# #????????????????????????????? | | ?????????????????? #????????????????????????????? | | ?????????????????? #????????????????????????####+ | | ?????????????????? #????????????????????????# | | ?????????????????? ?????????????????????????# | | ?????????????????????????????????????????????# | | ?????????????????????????????????????????????# | | ?????????????????????????????????????????????# | | ?????????????????????????????????????????????# | | ?????????????????????????????????????????????# | | ?????????????????????????????????????????????# ! | | ?????????????????# ??????????????????????????# | | ?????????????????# ??????????????????????????# | | ?????????????????# ?############?????????????# | | ?????????????????# # ] /??????????????# | | ?????????????????# # #??????????????# | | ?????????????????# + #??????????????# | | ?????????????????# # #?#####??###???## | | ?????????????????# # #? #? ?????? | | ?????????????????# %; #?% +? ?????????? | | ????????????????## #? ? ??????????? | | ????????????????#; @ #? ? #??????????? | | ??????############ % ########"###+##?????????? | | ?????? + ==! % #?????????? | | ????? #s =!! #?????????? | | ???? =!! [ #?????????? | | ???? # [ #?????????? | | ???? = #???? #???? | | ???? %= #??" #???? | | ?????# # % +?"T +???? | | ?????# # # % # #???? | | ????# # # # % ! ########### ! #???? | | ??? *m % h % %% %%" # #?????? | | ??? % /h% % %%]/* ]* ####" # # #?????? | | ?????## # #% # # # # ###???? | | ????? ### #%" % #???? | | ?????# #" %| #???? | | ?????? # "" # ! % #???? | | ???????## # "" # # # #???? | | ????????##### """""" ## ### #???? | | ????????????# """""" #?###?# #???? | | ????????????# "" ! #?????# #+??? | | ????????????# ???" #?????# | | ????????????# ???? #?????# | | ????????????# ????? #?????# ######## | | ??????????????????? #?????# #???????#####+### | +----------------------------------------------------+ Best States ------------- Heat Dissipation 188 Coolant Potential 165 Energy Generation 85 Energy Capacity 755 Matter Stores 300 Matter Capacity 300 Sight Range 18 Terrain Scan Density 10 ECM Strength 2 Jamming Range 16 Power Amplification 30 Additional Mass Support 9 EM Shielding 2 Armor Coverage 825 Resistance: KI 20 Resistance: TH 20 Resistance: EX 20 Power Shielding 33 Utility Shielding 66 Phase Shifting 5 Evasion (%) 68 Targeting Accuracy 22 Recoil Reduction 12 Particle Charging 20 Item Schematics ----------------- Enh. Biometal Leg | -2/Testing | Archive Imp. Quantum Reactor | -2/Testing | Archive Exp. Biometal Medium Treads | -2/Testing | Archive Quantum Shading Machine | -2/Testing | Archive Robot Schematics ------------------ None Fabricated ------------ Nothing Alien Tech Used ----------------- Integrated Dissipator Terrabomb Core Reset Matrix Achievements -------------- Main Advantage Pyromaniac Revolutionary Research Short-term Sacrifices Torch Challenges ------------ None RPGLIKE | -11 -10 -10 -8 -8 -6 -6 -5 -5 -5 -5 -5 -4 -4 -4 -4 -3 -3 -3 -2 -2 -1 --------- Run | Yrd Mat Sub Rec Scr Fac DSF Fac Ext Cet Arc Hub Fac Upp Upp Zhi Pro Res Qua Res Tes Acc Levels Raised 35 | . 1 1 1 . 1 2 3 3 1 1 6 2 1 . 1 1 2 1 2 1 4 XP Earned 56143 | 3000 1825 1200 1800 650 1500 2150 4424 4675 2304 1652 8153 3465 1435 580 294 2867 2916 1006 2366 1602 6279 XP Spent 55085 | 1500 2350 1800 1010 . 2200 1600 4415 3050 . 3100 8450 5350 2100 . . . 4300 3300 . 4900 5660 Upgrades 109 | 3 6 4 4 . 3 12 15 7 . 2 10 10 1 . . . 2 11 . 5 14 Power Slot 2 | 1 . . . . . . . 1 . . . . . . . . . . . . . Propulsion Slot 7 | 1 . . . . 1 . . 1 . 1 1 . . . . . 1 . . 1 . Utility Slot 7 | . 1 1 . . 1 . 1 . . 1 1 . . . . . 1 . . . . Weapon Slot 3 | 1 . . 1 . . . . . . . 1 . . . . . . . . . . Core Integrity 40 | . . . . . . 7 11 . . . . . . . . . . 10 . . 12 Heat Dissipation 13 | . . . 3 . . 2 2 5 . . . . . . . . . . . . 1 Energy Generation 4 | . . . . . 1 1 . . . . . . . . . . . 1 . . 1 Energy Storage 2 | . . . . . . 2 . . . . . . . . . . . . . . . Mass Support 5 | . 1 1 . . . . 1 . . . 1 . 1 . . . . . . . . Inventory Capacity 2 | . 1 . . . . . . . . . 1 . . . . . . . . . . Sight Range 2 | . . 2 . . . . . . . . . . . . . . . . . . . Ranged Accuracy 6 | . 3 . . . . . . . . . . 3 . . . . . . . . . KI Resistance % 4 | . . . . . . . . . . . 3 1 . . . . . . . . . TH Resistance % 4 | . . . . . . . . . . . 2 2 . . . . . . . . . EX Resistance % 4 | . . . . . . . . . . . . 4 . . . . . . . . . TH Damage % 4 | . . . . . . . . . . . . . . . . . . . . 4 . Protomatter Created 4510 | . 270 179 410 . . 26 430 391 47 83 130 90 405 47 . 261 204 42 109 256 1130 Integrity Restored 10168 | . 393 787 629 . . 78 999 1109 233 93 135 . 1077 141 . 505 656 . 315 582 2436 Core 9819 | . 279 552 629 . . 78 999 1109 233 93 135 . 1077 141 . 505 656 . 315 582 2436 Parts 349 | . 114 235 . . . . . . . . . . . . . . . . . . . Protomatter Decayed 4724 | . 136 257 92 . . . 97 202 60 119 108 37 46 . . 344 2958 42 . . 226 Game ------ Seed ExpertParticleDisintegrator Manual? 0 Play Time 09:10:54 Cumulative 56.8 hours Start 2024.09.13 @ 00:30:22 End 2024.09.14 @ 09:48:53 Sessions 3 Manual Loads 0 Difficulty Rogue Special Mode Winter2019/RPGLIKE Game No. 23 Rogue 19 Adventurer 4 Explorer 0 Win Type - Total 1 Types 1/0/0/0/0/0/0/0/0 Lore% 23 Gallery% 35 Achievement% 42 Wizard Run 0 Options --------- Layout 0 ASCII 0 Keyboard 0 Movement Arrows Keybinds 0 Fullscreen 2 Font 32/SmallcapsGlow Map View 88x55 Zoom Use 0% Tactical HUD 1 Map Filters NONE Filters NONE Steam 1 RUN: fea87c93-5119-4a89-a096-f322ccb949cc